{"text_format":"3","workbook":"xlsx","n_sheets":1,"sheets":["Ciśnienie krwi i poziom glukozy"],"not_rendered":{"defined_names":9},"read":"whole","date_system":"1900"}

{"sheet":"Ciśnienie krwi i poziom glukozy","index":0,"n_rows":13,"n_cols":11,"rows_kept":13,"merged":[[0,1,4,3],[0,4,0,9],[1,4,1,6],[1,7,1,9],[3,7,4,7],[3,8,4,8],[3,9,4,9]]}
[null,"Ewidencja ciśnienia krwi\ni poziomu glukozy",null,null,"Dostosuj wartości skali w komórkach od E2 do J5 poniżej."]
[{"$nulls":4},"CIŚNIENIE KRWI",null,null,"SKALA DLA GLUKOZY"]
[{"$nulls":4},120,"SKURCZOWE",140,70,100,150]
[{"$nulls":4},80,"ROZKURCZOWE",90,"NISKI","NORMALNY","WYSOKI"]
[{"$nulls":4},"CIŚNIENIE DOCELOWE",null,"SKONSULTOWAĆ SIĘ Z LEKARZEM"]
[null,"Data","Godzina","Zdarzenie","Skurczowe","Rozkurczowe","Tętno","Glukoza","Poziom","Stan","Notatki"]
[null,{"$f":"TODAY()","v":"2018-06-28"},"06:00:00","Na czczo",129,79,72,55,{"$f":"Ciśnienie_krwi_i_poziom_glukozy[[#This Row],[Glukoza]]","v":55},{"$f":"IFERROR(IF(Ciśnienie_krwi_i_poziom_glukozy[[#This Row],[Poziom]]=0,\"\",IF(Ciśnienie_krwi_i_poziom_glukozy[[#This Row],[Poziom]]<=Glukoza_niska,\"NISKI\",IF(AND(Ciśnienie_krwi_i_poziom_glukozy[[#This Row],[Poziom]]>Glukoza_niska,Ciśnienie_krwi_i_poziom_glukozy[[#This Row],[Poziom]]<Glukoza_wysoka),\"NORMALNY\",\"WYSOKI\"))), \"\")","v":"NISKI"}]
[null,{"$f":"TODAY()","v":"2018-06-28"},"07:00:00","Przed posiłkiem",120,80,74,70,{"$f":"Ciśnienie_krwi_i_poziom_glukozy[[#This Row],[Glukoza]]","v":70},{"$f":"IFERROR(IF(Ciśnienie_krwi_i_poziom_glukozy[[#This Row],[Poziom]]=0,\"\",IF(Ciśnienie_krwi_i_poziom_glukozy[[#This Row],[Poziom]]<=Glukoza_niska,\"NISKI\",IF(AND(Ciśnienie_krwi_i_poziom_glukozy[[#This Row],[Poziom]]>Glukoza_niska,Ciśnienie_krwi_i_poziom_glukozy[[#This Row],[Poziom]]<Glukoza_wysoka),\"NORMALNY\",\"WYSOKI\"))), \"\")","v":"NISKI"}]
[null,"2018-06-28","09:00:00","Po posiłku",133,80,75,75,{"$f":"Ciśnienie_krwi_i_poziom_glukozy[[#This Row],[Glukoza]]","v":75},{"$f":"IFERROR(IF(Ciśnienie_krwi_i_poziom_glukozy[[#This Row],[Poziom]]=0,\"\",IF(Ciśnienie_krwi_i_poziom_glukozy[[#This Row],[Poziom]]<=Glukoza_niska,\"NISKI\",IF(AND(Ciśnienie_krwi_i_poziom_glukozy[[#This Row],[Poziom]]>Glukoza_niska,Ciśnienie_krwi_i_poziom_glukozy[[#This Row],[Poziom]]<Glukoza_wysoka),\"NORMALNY\",\"WYSOKI\"))), \"\")","v":"NORMALNY"}]
[null,"2018-06-28","10:00:00","Tylko ciśnienie krwi",143,91,75,190,{"$f":"Ciśnienie_krwi_i_poziom_glukozy[[#This Row],[Glukoza]]","v":190},{"$f":"IFERROR(IF(Ciśnienie_krwi_i_poziom_glukozy[[#This Row],[Poziom]]=0,\"\",IF(Ciśnienie_krwi_i_poziom_glukozy[[#This Row],[Poziom]]<=Glukoza_niska,\"NISKI\",IF(AND(Ciśnienie_krwi_i_poziom_glukozy[[#This Row],[Poziom]]>Glukoza_niska,Ciśnienie_krwi_i_poziom_glukozy[[#This Row],[Poziom]]<Glukoza_wysoka),\"NORMALNY\",\"WYSOKI\"))), \"\")","v":"WYSOKI"}]
[null,"2018-06-28","12:00:00","Przed posiłkiem",141,84,70,140,{"$f":"Ciśnienie_krwi_i_poziom_glukozy[[#This Row],[Glukoza]]","v":140},{"$f":"IFERROR(IF(Ciśnienie_krwi_i_poziom_glukozy[[#This Row],[Poziom]]=0,\"\",IF(Ciśnienie_krwi_i_poziom_glukozy[[#This Row],[Poziom]]<=Glukoza_niska,\"NISKI\",IF(AND(Ciśnienie_krwi_i_poziom_glukozy[[#This Row],[Poziom]]>Glukoza_niska,Ciśnienie_krwi_i_poziom_glukozy[[#This Row],[Poziom]]<Glukoza_wysoka),\"NORMALNY\",\"WYSOKI\"))), \"\")","v":"NORMALNY"}]
[null,{"$f":"TODAY()","v":"2018-06-28"},"15:00:00","Po posiłku",132,80,68,90,{"$f":"Ciśnienie_krwi_i_poziom_glukozy[[#This Row],[Glukoza]]","v":90},{"$f":"IFERROR(IF(Ciśnienie_krwi_i_poziom_glukozy[[#This Row],[Poziom]]=0,\"\",IF(Ciśnienie_krwi_i_poziom_glukozy[[#This Row],[Poziom]]<=Glukoza_niska,\"NISKI\",IF(AND(Ciśnienie_krwi_i_poziom_glukozy[[#This Row],[Poziom]]>Glukoza_niska,Ciśnienie_krwi_i_poziom_glukozy[[#This Row],[Poziom]]<Glukoza_wysoka),\"NORMALNY\",\"WYSOKI\"))), \"\")","v":"NORMALNY"},"W czasie posiłku lek na nadciśnienie"]
[null,"Wartości średnie",null,null,{"$f":"SUBTOTAL(101,Ciśnienie_krwi_i_poziom_glukozy[Skurczowe])","v":133},{"$f":"SUBTOTAL(101,Ciśnienie_krwi_i_poziom_glukozy[Rozkurczowe])","v":{"v":82.33333333333333,"d":"82"}},{"$f":"SUBTOTAL(101,Ciśnienie_krwi_i_poziom_glukozy[Tętno])","v":{"v":72.33333333333333,"d":"72"}},{"$f":"SUBTOTAL(101,Ciśnienie_krwi_i_poziom_glukozy[Glukoza])","v":{"v":103.33333333333333,"d":"103"}}]